Cogmind - Beta 12 @@@ ROGUE MODE // 2023.04.24 @ 19:49:41 Player: maxwell Result: Destroyed by 8R-AWN with 8R-AWN's Boregun Performance ------------- Evolutions (0) 0 Regions Visited (3) 600 Robots Destroyed (27) 135 Value Destroyed (533) 533 Prototype IDs (24) 480 Alien Tech Used (0) 0 Bonus (300) 300 TOTAL SCORE: 2048 Bonus ------- Aligned with FarCom 300 Cogmind --------- Core Integrity 0/250 Matter 109/300 Energy 100/100 System Corruption 0% Temperature Cool (1) Movement Treading (240) Ox1 Location -10/Exiles Parts ------- > --- POWER (1) -------- (None) > --- PROPULSION (2) --- Light Treads Potential Leg > --- UTILITY (2) ------ Large Storage Unit Light Armor Plating > --- WEAPON (2) ------- Autogun Autogun > --- INVENTORY (15) --- Light Treads Potential Leg High-capacity Storage Unit Large Matter Pod (140) Light Armor Plating PSU Rigger Autogun Autogun Mini Grenade Launcher Ripper Peak State ------------ > --- POWER ------------ (None) > --- PROPULSION ------- Light Treads Light Treads > --- UTILITY ---------- High-capacity Storage Unit PSU Rigger > --- WEAPON ----------- Improved Assault Rifle Improved Assault Rifle > --- INVENTORY -------- Light Ion Engine Light Treads Potential Leg Potential Leg Large Storage Unit Large Matter Pod Light Armor Plating Light Armor Plating Light Armor Plating Light Armor Plating Autogun Autogun Autogun Autogun Mini Grenade Launcher Mini Grenade Launcher Mini Grenade Launcher Mini Grenade Launcher Ripper [Rating: 21] Favorites ----------- Power Light Ion Engine Engine Light Ion Engine Propulsion Light Treads Treads Light Treads Leg Aluminum Leg Utility Light Armor Plating Device Seismic Detector Storage Large Storage Unit Protection Light Armor Plating Weapon Improved Assault Rifle Energy Gun Medium Laser Ballistic Gun Improved Assault Rifle Launcher Mini Grenade Launcher Build | -11 -10 -10 -10 ------- Run | Jun Mat Min Exi Slots Evolved . | . . . . Power . | . . . . Propulsion . | . . . . Utility . | . . . . Weapon . | . . . . Parts Attached 26 | . 13 1 12 Power 3 | . 1 1 1 Engine 3 | . 1 1 1 Core . | . . . . Reactor . | . . . . Propulsion 3 | . 2 . 1 Treads 2 | . 2 . . Leg 1 | . . . 1 Wheel . | . . . . Hover . | . . . . Flight . | . . . . Utility 9 | . 3 . 6 Device 2 | . 1 . 1 Storage 3 | . 1 . 2 Processor . | . . . . Hackware . | . . . . Protection 4 | . 1 . 3 Artifact . | . . . . Weapon 11 | . 7 . 4 Energy Gun . | . . . . Energy Cannon . | . . . . Ballistic Gun 10 | . 7 . 3 Ballistic Cannon . | . . . . Launcher 1 | . . . 1 Special Weapon . | . . . . Impact Weapon . | . . . . Slashing Weapon . | . . . . Piercing Weapon . | . . . . Special Melee Weapon . | . . . . Unidentified Prototypes 1 | . 1 . . Parts Lost 5 | . . . 5 Power 1 | . . . 1 Propulsion 1 | . . . 1 Utility 1 | . . . 1 Weapon 2 | . . . 2 Highest Loss Streak 3 | . . . 3 To Critical Strikes 2 | . . . 2 Average Slot Usage (%) 98 | . 98 100 97 Engine 12 | . 14 14 11 Treads 23 | . 11 28 27 Leg 4 | . 16 . . Storage 16 | . 22 14 14 Protection 11 | . 4 14 13 Ballistic Gun 27 | . 25 28 28 Naked Turns . | . . . . Heaviest Build 52 | 14 36 34 52 Greatest Support 40 | 20 40 40 40 Greatest Overweight (x) 3 | . 3 . 1 Average Overweight (x) . | . . . . Largest Inventory Capacity 20 | . 15 15 20 Average Capacity 16 | . 14 15 17 Most Carried 20 | . 15 15 20 Average Carried 14 | . 12 14 16 Final Capacity 15 | 8 15 15 15 Final Carried 15 | 6 14 15 10 Class Distribution -------------------- 100% | Mutant Dominant Class ---------------- Mutant | -10/Materials Mutant | -10/Mines Mutant | -10/Exiles Resources | -11 -10 -10 -10 ----------- Run | Jun Mat Min Exi Matter Collected 642 | 200 279 153 10 Remotely . | . . . . Salvage Created 768 | . 518 239 11 Parts 63 | . 40 23 . Haulers Intercepted 2 | . 2 . . Recyclers Shooed . | . . . . Parts Field Recycled . | . . . . Retrieved Matter . | . . . . Parts Self-Destructed . | . . . . Prevented . | . . . . Kills | -11 -10 -10 -10 ------- Run | Jun Mat Min Exi Combat Hostiles Destroyed 27 | . 11 10 6 Guns 21 | . 11 10 . AOE 6 | . . . 6 Classes Destroyed 7 | . 6 . 1 Hauler 2 | . 2 . . Recycler 1 | . 1 . . Operator 1 | . 1 . . Watcher 2 | . 2 . . Swarmer 12 | . 6 6 . Grunt 9 | . 5 4 . Assembled 6 | . . . 6 Best Kill Streak 6 | . 5 5 6 Combat Bots Only 6 | . 5 5 6 Max Kills in Single Turn 4 | . 2 1 4 Gunslinging 1 | . 1 . . Exploded 4 | . . . 4 Melee . | . . . . Uniques/NPCs Destroyed . | . . . . Combat | -11 -10 -10 -10 -------- Run | Jun Mat Min Exi Damage Taken 1313 | . 339 314 660 Core 258 | . 82 50 126 Absorbed by Shields . | . . . . Core Remaining (%) 100 | 100 . . . Volleys Fired 78 | . 44 21 13 Largest 2 | . 2 2 2 Hottest 70 | . 70 46 46 Shots Fired 153 | . 88 42 23 Gun 150 | . 88 42 20 Cannon . | . . . . Launcher 3 | . . . 3 Special . | . . . . Kinetic 126 | . 64 42 20 Thermal 24 | . 24 . . Explosive 3 | . . . 3 Electromagnetic . | . . . . Robot Hit Streak 19 | . 8 11 19 Robot Miss Streak 3 | . 3 3 1 Penetration Max . | . . . . Secondary Targets 3 | . 2 1 . Max Gunslinging Chain 1 | . 1 1 . Shots Hit Robots 100 | . 54 28 18 Core Hits 54 | . 26 13 15 Critical Kills . | . . . . Critical Parts Destroyed . | . . . . Critical Strikes . | . . . . Melee Attacks . | . . . . Impact . | . . . . Slashing . | . . . . Piercing . | . . . . Sneak Attacks . | . . . . Combat Hostiles . | . . . . Follow-up Attacks . | . . . . Damage Inflicted 1959 | . 831 440 688 Guns 1442 | . 790 431 221 Cannons . | . . . . Explosions 467 | . . . 467 Melee . | . . . . Ramming 50 | . 41 9 . Kinetic 1239 | . 587 431 221 Thermal 203 | . 203 . . Explosive 467 | . . . 467 Electromagnetic . | . . . . Impact . | . . . . Slashing . | . . . . Piercing . | . . . . Highest Corruption . | . . . . Average Corruption . | . . . . Corruption Purged . | . . . . Corruption Blocked . | . . . . Overload Shots . | . . . . Overflow Damage 59 | . . . 59 Projectiles . | . . . . Explosions 59 | . . . 59 Melee . | . . . . Knockbacks . | . . . . Impact . | . . . . Kinetic . | . . . . Secondary . | . . . . Self-Inflicted Damage 132 | . . . 132 Shots 3 | . . . 3 Rammed 6 | . 5 1 . Targets Rammed 8 | . 7 1 . Kicked 2 | . 2 . . Crushed . | . . . . Highest Temperature 135 | . 135 18 13 Average Temperature 27 | . 36 8 3 Received Heat Transfer 188 | . 90 78 20 Siege Activations . | . . . . Robots Corrupted . | . . . . Combat Hostiles . | . . . . Parts Fried . | . . . . Impact Corruptions . | . . . . Robots Melted . | . . . . Combat Hostiles . | . . . . Parts Melted . | . . . . Heat Transferred 592 | . 592 . . Parts Sabotaged . | . . . . Parts Stolen . | . . . . Parts Stripped . | . . . . Power Chain Reactions . | . . . . Missiles Intercepted . | . . . . Alert | -11 -10 -10 -10 ------- Run | Jun Mat Min Exi Peak Influence 298 | . 298 167 . Initial 47 | . . 47 . Average 118 | . 115 123 . Maximum Alert Level 1 | . 1 . . Low Security (%) 86 | . 77 100 . Level 1 13 | . 22 . . Level 2 . | . . . . Level 3 . | . . . . Level 4 . | . . . . Level 5 . | . . . . High Security . | . . . . Max Security . | . . . . Squads Dispatched 2 | . 2 . . Investigation 2 | . 2 . . Extermination . | . . . . Reinforcement . | . . . . Assault . | . . . . Garrison . | . . . . Intercept . | . . . . Searches Triggered . | . . . . Construction Impeded . | . . . . Haulers Reinforced . | . . . . Active Scanning Responses . | . . . . Cargo Convoy Interrupts . | . . . . Stealth | -11 -10 -10 -10 --------- Run | Jun Mat Min Exi Distress Signals . | . . . . Communications Jammed . | . . . . Distress Signals . | . . . . Times Spotted 37 | . 19 10 8 Peak Tracking Total 9 | . 5 3 9 Tactical Retreats 2 | . 1 1 . Traps | -11 -10 -10 -10 ------- Run | Jun Mat Min Exi Traps Triggered 4 | . 4 . . Indirectly . | . . . . Trap Hack Attempts . | . . . . Triggered . | . . . . Disarmed . | . . . . Reprogrammed . | . . . . Reused . | . . . . Traps Extracted . | . . . . Installed . | . . . . Triggered . | . . . . Power Sources Rigged 1 | . . . 1 Machines | -11 -10 -10 -10 ---------- Run | Jun Mat Min Exi Machines Disabled 6 | . . 1 5 Max in Single Turn 2 | . . 1 2 Machines Repaired . | . . . . Machines Sabotaged . | . . . . Overloaded Fab Kills . | . . . . Hacking | -11 -10 -10 -10 --------- Run | Jun Mat Min Exi Machines Accessed 7 | . 5 . 2 Terminals 4 | . 4 . . Fabricators . | . . . . Repair Stations . | . . . . Recycling Units 1 | . 1 . . Scanalyzers . | . . . . Garrison Access . | . . . . Total Hacks 19 | . 17 . 2 Successful 10 | . 8 . 2 Failed 8 | . 8 . . Catastrophic 1 | . 1 . . Database Lockouts 1 | . 1 . . Manual 14 | . 13 . 1 Terminals 14 | . 14 . . Fabricators . | . . . . Repair Stations . | . . . . Recycling Units 3 | . 3 . . Scanalyzers . | . . . . Garrison Access . | . . . . Terminal Hacks 7 | . 5 . 2 Record 3 | . 2 . 1 Robot Analysis 2 | . 2 . . Terminal Index 1 | . 1 . . EX-Prototype ID Bank 1 | . . . 1 Fabricator Hacks . | . . . . Repair Station Hacks . | . . . . Recycling Unit Hacks . | . . . . Scanalyzer . | . . . . Garrison Access Hacks . | . . . . Unauthorized Hacks 3 | . 3 . . Terminals 2 | . 2 . . Botnet 1 | . 1 . . Operators 1 | . 1 . . Fabricators . | . . . . Repair Stations . | . . . . Recycling Units 1 | . 1 . . Tunnel 1 | . 1 . . Scanalyzers . | . . . . Garrison Access . | . . . . Data Cores Recovered 1 | . 1 . . Used . | . . . . Hacking Detections 4 | . 4 . . Full Trace Events . | . . . . Feedback Events . | . . . . Feedback Blocked . | . . . . Robot Schematics Acquired . | . . . . Robots Built . | . . . . Authchips . | . . . . Time . | . . . . Total Robot Build Rating . | . . . . Part Schematics Acquired . | . . . . Parts Built . | . . . . Authchips . | . . . . Time . | . . . . Total Part Build Rating . | . . . . Parts Repaired . | . . . . Time . | . . . . Parts Recycled . | . . . . Recycled Matter . | . . . . Retrieved Matter . | . . . . Retrieved Components . | . . . . Parts Scanalyzed . | . . . . Part Schematics Acquired . | . . . . Parts Damaged . | . . . . Bothacking | -11 -10 -10 -10 ------------ Run | Jun Mat Min Exi Used RIF Installer . | . . . . Robots Hacked . | . . . . Non-combat . | . . . . Combat . | . . . . Robot Hacks Applied . | . . . . Relay Couplers Released . | . . . . Fabnet Peak Effective % . | . . . . Robots Rewired . | . . . . Allies Hacked . | . . . . Hacks Repelled . | . . . . Allies | -11 -10 -10 -10 -------- Run | Jun Mat Min Exi Total Allies . | . . . . Largest Group . | . . . . Highest-Rated Group . | . . . . Highest-Rated Ally . | . . . . Total Orders . | . . . . Ally Attacks . | . . . . Total Damage . | . . . . Kills . | . . . . Allies Corrupted . | . . . . Allies Melted . | . . . . Intel | -11 -10 -10 -10 ------- Run | Jun Mat Min Exi Robot Analysis Total 2 | . 2 . . Derelict Logs Recovered 1 | . . 1 . Drone Launches . | . . . . Drone Recoveries . | . . . . Exploration | -11 -10 -10 -10 ------------- Run | Jun Mat Min Exi Turns Passed 4082 | . 1195 836 2051 Spaces Moved 1979 | 1 562 470 946 Core . | . . . . Treads 1673 | . 257 470 946 Legs 306 | 1 305 . . Wheels . | . . . . Hover . | . . . . Flight . | . . . . Fastest Speed 120 | 120 120 160 160 Average Speed 184 | 120 175 160 201 Slowest Speed 330 | 120 330 160 240 Overloaded Moves . | . . . . Propulsion Burnouts . | . . . . Robots Hopped . | . . . . Cave-ins Triggered . | . . . . Exploration Rate (%) 64 | 2 96 89 69 Regions Visited 3 Branch Regions 2 Pre-discovered Areas 3 | . 1 1 1 Known Exits Taken . | . . . . Unknown Exits Taken 3 | 1 1 1 . Scrap Searched 1 | . . 1 . Spaces Dug . | . . . . Terrain Destroyed 23 | . . . 23 Melee . | . . . . Projectile . | . . . . AOE 23 | . . . 23 Terrain Rammed . | . . . . Walls Destroyed . | . . . . Machines Disabled . | . . . . Actions | -11 -10 -10 -10 --------- Run | Jun Mat Min Exi Total 2262 | . 676 513 1073 Wait 116 | . 29 16 71 Move 1976 | . 561 469 946 Hop . | . . . . Pick Up 29 | . 12 3 14 Fast Attach 11 | . 11 . . Attach 9 | . 2 1 6 Detach 3 | . 3 . . Swap 6 | . . . 6 Drop 25 | . 7 2 16 Fire 78 | . 44 21 13 Melee . | . . . . Ram . | . . . . Kick 2 | . 2 . . Crush 6 | . 5 1 . Escape Stasis . | . . . . Rewire . | . . . . Trap 1 | . . . 1 Miscellaneous . | . . . . Route ------- -11/Junkyard -10/Materials (discovered 4 exits: [*Mat x3] / [*Min]) -10/Mines (discovered 3 exits: [*Mat x2] / *Exi) -10/Exiles (discovered 1 exit: [*Min]) History --------- Turn | Location | Event 1 | -11/Junkyard | Discovered new exit (range 0) 1 | -11/Junkyard | Entered Materials 309 | -10/Materials | Build established: Mutant 398 | -10/Materials | Discovered new exit (range 7) 464 | -10/Materials | Central database locked down 731 | -10/Materials | Discovered new exit (range 14) 890 | -10/Materials | Discovered new exit (range 14) 1175 | -10/Materials | Discovered new exit (range 12) 1196 | -10/Materials | Entered Mines 1253 | -10/Mines | A weapon hastily lodged in a ceiling crevice suddenly fell to the ground 1359 | -10/Mines | Received a Rocket Launcher from a helpful Derelict 1414 | -10/Mines | Discovered new exit (range 8) 1446 | -10/Mines | Learned Materials non-interactive machine intel 1687 | -10/Mines | Core integrity fell below 50% 1808 | -10/Mines | Discovered new exit (range 5) 1952 | -10/Mines | Learned location of Storage (-9) 2026 | -10/Mines | Deemed a non-threat by the Exiles lab entrance 2026 | -10/Mines | Discovered new exit (range 5) 2032 | -10/Mines | Entered Exiles 2071 | -10/Exiles | Met 8R-AWN 2098 | -10/Exiles | Met EX-HEX 2208 | -10/Exiles | Met EX-DEC 2246 | -10/Exiles | Learned location of Zion (-6) 2290 | -10/Exiles | Met EX-BIN 2321 | -10/Exiles | Aligned with FarCom system 2323 | -10/Exiles | Given EX-Vault access code 2378 | -10/Exiles | Opened EX-Vault 2393 | -10/Exiles | Found Cloak of Protection 2396 | -10/Exiles | Found PSU Rigger 2402 | -10/Exiles | Found Potential Leg 2406 | -10/Exiles | Found Potential Leg 2452 | -10/Exiles | Warned to stay clear of 0b10 Research branches 2618 | -10/Exiles | Discovered new exit (range 10) 3974 | -10/Exiles | Attacked by the Exiles 4066 | -10/Exiles | Core integrity fell below 20% 4083 | -10/Exiles | Destroyed by 8R-AWN with 8R-AWN's Boregun Last Messages --------------- 04072_ HV Slug penetrates Wall. 04072_ HV Slug penetrates Earth. 04074_ Penetrated by HV Slug. 04074_ Critical hit (Destroy). 04074_ HV Slug penetrates Earth. 04074_ Penetrated by HV Slug. 04074_ Critical hit (Destroy). 04074_ HV Slug penetrates Earth. 04076_ Penetrated by HV Slug. 04076_ HV Slug penetrates Earth. 04076_ Penetrated by HV Slug. 04076_ HV Slug penetrates Earth. 04079_ Penetrated by HV Slug. 04079_ HV Slug penetrates Earth. 04079_ Penetrated by HV Slug. 04079_ HV Slug penetrates Earth. 04079_ Machine disabled. 04081_ Penetrated by HV Slug. 04081_ HV Slug penetrates Earth. 04081_ Penetrated by HV Slug. Map ----- +----------------------------------------------------+ | ?????????????????????????????????????????????????? | | ?????????????????????????????????????????????????? | | ????????#####????????????????????????????????????? | | ???????## ##???????????????????????????????????? | | ???????# #???????????????????????????????????? | | ???????# < #???????????????????????????????????? | | ???????# ] ###?????????????????????????????????? | | ???????#]! #?????????????????????????????????? | | ???????# ] ##?????????????????????????????????? | | ???????## ! #??????????????????????????????????? | | ????????# ##?????????????????????????????????? | | ????????## #????????????#######??????????????? | | ?????????# #######??????#!!! "#??????????????? | | ?????????# # "##?????# "#??????????????? | | ?????????## #?????# "#??????????????? | | ??????????##" ##???## ""#????????????### | | ??????????#"" #####" ""#???????????? " | | ??????????#### ##" ""#????????????" " | | ?????????????## #"" #??????????????" | | ??????????????#"## #?????????????"" | | ??????????????####### ##????????????"" | | ????????????????????# "#???????????? | | ??????????????####### ###???????????" | | ??????????????# !!"""" g * ##??????????# | | ??????????????#! # #"" ######???### | | ??????????????#! @ ##" ""#####X# | | ??????????????#! #" | | ??????????????# !"""" #"# * | | ??????????????####### # ###### | | ????????????????????##### ##????### * | | ????????????????????????# #???????### | | ????????????????????????# #?????????## | | ????????????????????????# #??????????## * | | ????????????????????????# #???????????##" | | ????????????????????????? ?????????????#""" | | ????????????????????????? ?????????????#" | | ????????????????????????? ????????????#"" | | ????????????????????????? ????????????#""" | | ????????????????????????? ???????????#""" | | ????????????????????????? ???????????#""" | | ????????????????????????? ???????????#"" | | ??????????????????????????????????????""" | | ??????????????????????????????????????"" | | ???????????????????????????????????????"" | | ???????????????????????????????????????"""" | | ???????????????????????????????????????# | | ????????????????????????????????????????" | | ????????????????????????????????????????"""" | | ?????????????????????????????????????????" | | ????????????????????????????????????????? | +----------------------------------------------------+ Best States ------------- Heat Dissipation 25 Energy Generation 10 Energy Capacity 250 Matter Stores 300 Matter Capacity 300 Sight Range 16 Terrain Scan Density 10 Armor Coverage 150 Evasion (%) 45 Recoil Reduction 2 Item Schematics ----------------- None Robot Schematics ------------------ None Fabricated ------------ Nothing Alien Tech Used ----------------- None Achievements -------------- None Challenges ------------ None Game ------ Seed TiamatNavigationBox Manual? 0 Play Time 00:14:01 Cumulative 317.3 hours Start 2023.04.24 @ 15:41:03 End 2023.04.24 @ 19:49:41 Sessions 3 Manual Loads 0 Difficulty Rogue Special Mode None Game No. 459 Rogue 436 Adventurer 4 Explorer 19 Win Type - Total 14 Types 10/0/1/2/1/0/0/0/0 Lore% 71 Gallery% 91 Achievement% 77 Wizard Run 0 Options --------- ASCII 0 Keyboard 1 Movement Numpad Keybinds 0 Fullscreen 2 Font 18/SmallcapsGlow Map View 76x50 Tactical HUD 1 Map Filters NONE Filters NONE Steam 1 RUN: 24794c99-c31e-4540-8983-26ab06622e52